bitfinex/quotes_ETHUSD_20220103
["timestamp","ask_amount","ask_price","bid_price","bid_amount"]
[1641243497016,0.00170527,3696.4,3695.9,0.00113684]
[1641243497414,0.00113685,3696.3,3695.9,0.00113684]
[1641243497916,0.0022737,3696.5,3695.9,0.00113684]
[1641243498314,0.00170527,3696.4,3695.9,0.00113684]
[1641243498820,1.2712006,3696.7,3695.9,0.00113684]
[1641243498821,0.00113685,3696.3,3695.9,0.00113684]
[1641243499216,0.00284212,3696.6,3695.9,0.00113684]
[1641243499617,0.0022737,3696.5,3695.9,0.00113684]
[1641243500020,0.00170527,3696.4,3695.9,0.67750684]
[1641243500217,0.00170527,3696.4,3695.9,0.78286584]
[1641243500460,0.00113685,3696.3,3695.9,0.78286584]
[1641243500861,0.00454739,3696.9,3695.9,1.12103674]
[1641243501061,0.00454739,3696.9,3695.9,0.78286584]
[1641243501260,0.00397897,3696.8,3695.9,0.78286584]
[1641243501470,0.6764,3696.7,3695.9,0.78286584]
[1641243501866,0.00284212,3696.6,3696.0,0.0025765]
[1641243502268,0.0022737,3696.5,3696.0,0.0025765]
[1641243502669,0.00170527,3696.4,3696.0,0.0025765]
[1641243503068,0.00113685,3696.3,3696.1,0.67629]
[1641243503468,0.00511581,3697.0,3696.1,0.67629]
[1641243503871,0.00454739,3696.9,3696.1,0.67629]
[1641243504075,0.00454739,3696.9,3696.4,0.67624]
[1641243504313,0.00397897,3696.8,3696.6,0.3381045]
[1641243504713,0.00795793,3697.5,3696.9,1.12091172]
[1641243505114,0.00738951,3697.4,3696.9,1.12091172]
[1641243505515,0.00682109,3697.3,3696.9,1.12091172]
[1641243505920,0.00625266,3697.2,3696.9,1.12091172]
[1641243506323,0.00568424,3697.1,3696.9,1.12091172]
[1641243506725,0.00511581,3697.0,3696.9,1.12091172]
[1641243508659,0.00511581,3697.0,3696.8,0.67623]
[1641243509059,0.00454739,3696.9,3696.8,0.67623]
[1641243509262,0.00454739,3696.9,3696.6,1.35245]
[1641243509662,0.00397897,3696.8,3696.6,1.35245]
[1641243510060,0.67631,3697.3,3696.6,1.35245]
[1641243510262,0.67631,3697.3,3696.6,2.54641311]
[1641243510461,0.00625266,3697.2,3696.6,2.54641311]
[1641243510860,0.00568424,3697.1,3696.6,2.54641311]
[1641243511261,0.00511581,3697.0,3696.6,1.35245]
[1641243511707,0.00454739,3696.9,3696.6,1.35245]
[1641243512111,0.00397897,3696.8,3696.6,1.35245]
[1641243512511,0.00625266,3697.2,3696.6,1.35245]
[1641243512911,0.00568424,3697.1,3696.7,0.00124544]
[1641243513112,0.00568424,3697.1,3696.8,0.67625]
[1641243513312,0.00511581,3697.0,3696.8,0.67625]
[1641243513712,0.00454739,3696.9,3696.8,0.67625]
[1641243513913,0.00454739,3696.9,3696.7,0.00124544]
[1641243514314,2.10242753,3697.1,3696.7,0.00124544]
[1641243514315,0.00397897,3696.8,3696.7,0.00124544]
[1641243515560,2.0564065,3696.8,3696.7,0.33934684]
[1641243515960,2.0564065,3696.8,3696.7,0.00124544]
[1641243516159,2.0564065,3696.8,3696.7,0.30124544]
[1641243516559,0.06929078,3697.6,3696.7,0.00124544]
[1641243516765,0.06929078,3697.6,3697.0,0.67622]
[1641243517066,0.00397896,3697.5,3697.0,0.67622]
[1641243517462,0.67625,3697.6,3697.0,0.67622]
[1641243517463,0.00341054,3697.4,3697.0,0.67622]
[1641243517869,0.00284212,3697.3,3697.0,0.67622]
[1641243518268,0.00227369,3697.2,3697.0,0.67622]
[1641243518669,0.00170527,3697.1,3697.0,0.67622]
[1641243518868,0.62798527,3697.3,3697.0,0.67622]
[1641243519509,0.67626,3697.5,3697.0,0.67622]
[1641243519711,1.3526,3697.6,3696.7,0.00124544]
[1641243519908,1.3526,3697.6,3696.7,0.67754544]
[1641243520108,1.3526,3697.6,3696.8,0.00170527]
[1641243520713,0.67629,3697.4,3696.8,0.00170527]
[1641243520912,0.67629,3697.4,3696.8,0.67799527]
[1641243521116,0.00113685,3697.3,3696.8,0.67799527]
[1641243521316,0.00113685,3697.3,3696.9,0.00113685]
[1641243521713,0.00113685,3697.3,3696.8,1.35414527]
[1641243522117,0.00113685,3697.3,3697.0,0.67626]
[1641243523959,0.00113685,3697.3,3697.1,0.00119666]
[1641243524160,0.00113685,3697.3,3697.1,0.00239332]
[1641243529321,0.00113685,3697.3,3697.1,9.22780332]
[1641243538257,0.00113685,3697.3,3697.1,7.93823842]
[1641243542714,0.00113685,3697.3,3697.1,8.04359742]
[1641243545877,0.00113685,3697.3,3697.2,0.00092462]
[1641243548383,0.00113685,3697.3,3697.1,8.04274666]
[1641243548584,0.67633,3697.2,3697.1,8.04274666]
[1641243548783,0.99833,3697.2,3697.1,8.04274666]
[1641243548983,5.04833,3697.2,3697.1,7.79141082]
[1641243549208,20.89833,3697.2,3697.1,7.79141082]
[1641243549411,17.84833,3697.2,3697.1,7.79141082]
[1641243549609,18.14833,3697.2,3697.1,7.79141082]
[1641243550211,25.97381345,3697.2,3697.1,7.79141082]
[1641243550412,26.00576378,3697.2,3697.1,3.54141082]
[1641243551817,26.00576378,3697.2,3697.0,0.105358]
[1641243551818,1.47301986,3697.1,3697.0,5.8e-05]
[1641243552018,1.47301986,3697.1,3695.5,1.35291]
[1641243552019,0.1053,3697.0,3695.5,1.35291]
[1641243552219,0.322,3696.9,3695.4,1.82301225]
[1641243552419,0.67662,3696.6,3696.2,0.00401581]
[1641243552719,0.322,3696.5,3696.2,0.00401581]
[1641243552975,15.85,3696.4,3696.2,0.00401581]
[1641243553168,9.422,3696.3,3696.2,0.00401581]
[1641243553569,26.28804266,3696.3,3696.2,0.00401581]
[1641243553769,26.28804266,3696.3,3695.1,1.82301225]
[1641243553770,26.28804266,3696.3,3695.3,0.06929171]
[1641243553969,0.67664,3696.0,3695.3,0.06929171]
[1641243554170,0.67664,3696.0,3695.4,0.0085632]
[1641243554171,16.172,3695.9,3695.4,0.0085632]
[1641243554372,18.69276398,3695.9,3695.4,0.0085632]
[1641243554568,1.0,3695.8,3695.4,0.0085632]
[1641243554770,2.58397775,3695.7,3695.4,0.0085632]
[1641243555168,1.0,3695.6,3695.4,0.0085632]
[1641243555368,3.11498998,3695.5,3695.4,0.0085632]
[1641243555769,3.11498998,3695.5,3694.9,0.01140532]
[1641243555973,1.04290989,3695.0,3694.9,0.01140532]
[1641243556169,2.43829998,3695.5,3694.9,0.01140532]
[1641243556369,0.67669,3695.3,3694.9,0.01140532]
[1641243556569,0.67663,3695.4,3695.0,0.00096319]
[1641243556817,1.97374381,3695.6,3695.0,0.00096319]
[1641243557013,1.97374381,3695.4,3695.1,0.01026847]
[1641243557816,1.29613567,3695.8,3695.1,0.01026847]
[1641243558417,1.29613567,3695.8,3695.2,0.67653]
[1641243558622,1.29613567,3695.8,3695.1,1.36324847]
[1641243558818,1.29613567,3695.8,3695.3,0.00913162]
[1641243559020,1.29613567,3695.8,3695.2,0.00970005]
[1641243559219,1.97374381,3695.7,3695.2,0.00970005]
[1641243560225,1.97374381,3695.7,3695.4,0.67651]
[1641243560471,1.97374381,3695.7,3695.5,0.3381954]
[1641243560678,1.97374381,3695.7,3695.5,0.34619018]
[1641243560874,1.97374381,3695.7,3695.6,0.00742635]
[1641243561473,1.97374381,3695.7,3695.6,0.68376635]
[1641243561673,1.02809927,3696.3,3695.6,0.68376635]
[1641243561875,1.02809927,3696.3,3695.6,1.02194135]
[1641243562074,1.02809927,3696.3,3695.9,0.67635]
[1641243562275,1.97374381,3696.8,3696.0,0.3]
[1641243562476,1.97374381,3696.8,3696.0,0.30515266]
[1641243562678,1.97374381,3696.2,3696.1,0.00458424]
[1641243562875,1.97374381,3696.2,3696.1,0.34270924]
[1641243563474,1.97374381,3696.2,3696.1,1.58933816]
[1641243563878,0.17459217,3697.0,3696.1,1.58933816]
[1641243564075,0.17459217,3697.0,3696.4,0.67622]
[1641243564315,0.17459217,3697.0,3696.5,0.3380981]
[1641243564514,0.17459217,3697.0,3696.5,0.34040864]
[1641243564718,0.17459217,3697.0,3696.6,0.00174212]
[1641243565315,0.1053,3697.0,3696.6,0.00174212]
[1641243565920,1.97374381,3696.9,3696.6,0.98090012]
[1641243566119,1.97374381,3696.9,3696.7,0.3380836]
[1641243566317,1.97374381,3696.9,3696.7,0.3392573]
[1641243566523,0.1053,3697.0,3696.8,0.3]
[1641243566918,0.1053,3697.0,3696.9,1.84441782]
[1641243567120,0.1053,3697.0,3696.9,2.14441782]
[1641243567320,0.0001,3697.0,3696.9,3.02201782]
[1641243567722,6.12,3697.8,3696.9,3.32201782]
[1641243567967,2.75173964,3698.3,3696.9,3.32201782]
[1641243567968,2.75173964,3698.3,3697.7,0.01213849]
[1641243568166,2.75173964,3698.3,3697.8,1.06329552]
[1641243568167,1.64397791,3698.2,3697.8,1.06329552]
[1641243568367,2.75173964,3698.3,3697.9,8.95152]
[1641243568665,0.7144597,3698.0,3697.9,1.35152]
[1641243568865,0.7144597,3698.0,3697.9,8.67352]
[1641243569072,3.66471216,3698.9,3698.2,1.35133]
[1641243569269,0.06928799,3698.8,3698.5,0.1351293]
[1641243569567,1.51043964,3699.1,3698.7,1.35111]
[1641243569766,6.12,3699.2,3698.8,0.322]
[1641243569965,3.31907623,3699.4,3698.9,8.1]
[1641243570166,3.31907623,3699.4,3699.1,0.1350908]
[1641243570365,0.00625265,3699.3,3699.2,8.022]
[1641243570568,0.99821,3700.7,3699.2,0.322]
[1641243570765,3.76525509,3700.9,3699.3,2.67029516]
[1641243570967,0.00341055,3699.9,3699.4,0.322]
[1641243571167,0.00341055,3699.9,3699.2,0.322]
[1641243571367,0.00284212,3699.8,3699.4,1.35102]
[1641243571735,3.76525509,3700.9,3698.9,3.91471698]
[1641243571736,0.0022737,3699.7,3699.2,1.75193255]
[1641243572130,0.67573,3700.6,3699.2,1.75193255]
[1641243572131,0.00170527,3699.6,3699.2,1.75193255]
[1641243572538,0.67573,3700.6,3698.9,3.6073]
[1641243572539,0.00113685,3699.5,3698.9,3.6073]
[1641243572733,0.00113685,3699.5,3698.9,1.08368263]
[1641243572932,1.21445273,3699.7,3699.0,0.00170527]
[1641243573334,0.00170527,3699.6,3699.0,0.00170527]
[1641243573737,0.00113685,3699.5,3699.0,0.00170527]
[1641243574133,0.00682109,3700.5,3699.0,0.00170527]
[1641243574341,0.00682109,3700.5,3699.0,2.56284727]
[1641243574533,1.22,3700.6,3699.0,2.56284727]
[1641243574534,0.00625266,3700.4,3699.0,2.56284727]
[1641243574734,0.00625266,3700.4,3699.1,0.00113684]
[1641243574936,0.00568424,3700.3,3699.1,0.00113684]
[1641243575134,1.10341237,3700.3,3699.5,1.09902177]
[1641243575334,0.00511582,3700.2,3699.5,1.09902177]
[1641243575781,0.00454739,3700.1,3699.1,3.10430939]
[1641243575980,0.00454739,3700.1,3699.1,1.75306939]
[1641243576184,0.00397897,3700.0,3699.1,1.75306939]
[1641243576586,0.00511582,3700.2,3699.1,1.75306939]
[1641243576992,0.00454739,3700.1,3699.1,0.00113684]
[1641243577190,0.00454739,3700.1,3699.2,1.12483024]
[1641243577386,1.09772813,3700.3,3699.2,1.12483024]
[1641243577387,0.00397897,3700.0,3699.2,1.12483024]
[1641243577786,0.00511582,3700.2,3699.2,1.12483024]
[1641243578190,0.00454739,3700.1,3699.2,1.72483024]
[1641243578388,0.00454739,3700.1,3699.2,3.47676279]
[1641243578588,0.00397897,3700.0,3699.2,3.47676279]
[1641243578988,0.00511582,3700.2,3699.2,3.47676279]
[1641243579212,0.00511582,3700.2,3699.5,1.75193255]
[1641243579412,0.00454739,3700.1,3699.5,1.75193255]
[1641243579812,0.00397897,3700.0,3699.5,1.75193255]
[1641243580213,0.00511582,3700.2,3699.5,1.75193255]
[1641243580513,0.00454739,3700.1,3699.5,1.75193255]
[1641243580714,1.05227552,3700.3,3699.6,1.75193255]
[1641243580913,1.22,3700.6,3699.6,1.75193255]
[1641243581113,1.1801,3700.9,3699.7,0.00227369]
[1641243581313,0.0022737,3700.5,3699.7,2.54379446]
[1641243581513,0.0022737,3700.5,3699.8,0.13819997]
[1641243581714,0.00170527,3700.4,3699.8,0.13990524]
[1641243581917,0.00170527,3700.4,3700.3,1.03506485]
[1641243582122,1.15760671,3701.1,3700.3,1.03506485]
[1641243582518,0.00511581,3701.0,3700.3,1.03506485]
[1641243582964,0.00454739,3700.9,3700.3,1.03506485]
[1641243583370,0.00397897,3700.8,3700.3,1.03506485]
[1641243583767,0.00341054,3700.7,3700.3,1.03506485]
[1641243584268,0.15544602,3700.6,3700.3,1.03506485]
[1641243584670,0.0022737,3700.5,3700.3,1.03506485]
[1641243584969,0.00170527,3700.4,3700.3,1.03506485]
[1641243585371,0.00170527,3700.4,3700.1,1.75193255]
[1641243585771,0.00113685,3700.3,3700.1,1.75193255]
[1641243586171,0.00454739,3700.9,3700.1,1.75193255]
[1641243586371,1.34525714,3700.8,3700.0,3.0625426]
[1641243586572,1.34923611,3700.8,3700.0,3.0625426]
[1641243586832,0.00341054,3700.7,3700.0,3.0625426]
[1641243587235,0.00284212,3700.6,3699.9,0.00113684]
[1641243587632,0.0022737,3700.5,3699.9,0.00113684]
[1641243588031,0.00170527,3700.4,3699.9,0.00113684]
[1641243588433,0.00113685,3700.3,3699.9,0.00113684]
[1641243588833,0.1526039,3700.7,3699.9,0.00113684]
[1641243588834,0.00284212,3700.6,3699.9,0.00113684]
[1641243589232,0.0022737,3700.5,3700.0,1.38974291]
[1641243589633,0.00170527,3700.4,3700.0,1.38974291]
[1641243590035,0.00113685,3700.3,3700.0,1.38974291]
[1641243590476,0.1526039,3700.7,3700.0,1.38974291]
[1641243590477,0.00284212,3700.6,3700.0,1.38974291]
[1641243590876,0.0022737,3700.5,3699.9,0.00113684]
[1641243591079,0.0022737,3700.5,3700.1,0.00127623]
[1641243591277,0.00170527,3700.4,3700.1,0.00127623]
[1641243591677,0.1526039,3700.7,3700.1,0.00127623]
[1641243591678,0.00113685,3700.3,3700.1,0.00127623]
[1641243592081,0.00284212,3700.6,3700.1,0.00127623]
[1641243592281,0.67853212,3700.6,3700.1,0.00127623]
[1641243592484,0.0022737,3700.5,3700.1,0.00127623]
[1641243592884,0.00170527,3700.4,3700.1,0.00127623]
[1641243593183,1.22672376,3700.2,3700.1,0.00127623]
[1641243593687,0.15490641,3700.5,3700.1,0.00127623]
[1641243594226,0.00170527,3700.4,3700.1,0.00127623]
[1641243594523,0.00113685,3700.3,3700.1,0.00127623]
[1641243594922,0.00170527,3700.4,3700.1,0.00127623]
[1641243595324,0.00113685,3700.3,3700.1,0.00127623]
[1641243595724,0.00170527,3700.4,3700.1,0.00127623]
[1641243596024,0.15263271,3700.5,3700.1,0.00127623]
[1641243596025,0.00113685,3700.3,3700.1,0.00127623]
[1641243596526,0.00170527,3700.4,3700.1,0.00127623]
[1641243596928,0.00113685,3700.3,3700.1,0.00127623]
[1641243597329,0.00170527,3700.4,3700.1,0.00127623]
[1641243597632,0.00113685,3700.3,3700.1,0.00127623]
[1641243598076,0.00113685,3700.3,3700.0,0.00127623]
[1641243598077,2.4,3700.3,3700.0,0.00015246]
[1641243598279,0.6757638,3700.3,3700.0,0.00015246]
[1641243599276,0.67584,3700.2,3700.0,0.00015246]
[1641243600079,0.82847271,3700.2,3700.0,0.00015246]
[1641243600282,0.15263271,3700.2,3698.9,0.97317828]
[1641243600479,0.67574,3700.0,3698.9,0.97317828]
[1641243600678,0.15263271,3700.2,3698.9,0.97317828]
[1641243600886,0.15263271,3700.1,3699.0,1.75193255]
[1641243601483,1.35062581,3699.7,3699.0,1.75193255]
[1641243601743,1.35062581,3699.7,3698.9,1.75193255]
[1641243601744,2.32641581,3699.7,3698.9,1.75193255]
[1641243601948,1.65062581,3699.7,3698.9,1.75193255]
[1641243602854,1.65062581,3699.7,3698.6,3.1628]
[1641243602855,0.15263271,3699.6,3698.7,1.75193255]
[1641243603450,0.67583,3699.5,3698.7,1.75193255]
[1641243603850,0.15263271,3699.6,3698.7,1.75193255]
[1641243604249,0.15263271,3699.4,3698.7,1.75193255]
[1641243605489,0.15263271,3699.6,3698.9,1.75193255]
[1641243605682,0.67584,3699.3,3698.9,1.75193255]
[1641243606381,0.67584,3699.3,3697.5,3.9564]
[1641243606382,0.67584,3699.3,3698.7,1.1005269]
[1641243606581,0.67599,3699.1,3698.7,1.1005269]
[1641243606782,0.67599,3699.1,3697.3,0.0559]
[1641243606783,0.27021272,3698.7,3697.7,0.01250532]
[1641243607183,0.322,3698.6,3697.4,0.01421059]
[1641243607484,16.472,3698.6,3697.0,0.01648429]
[1641243607682,1.24963175,3697.8,3697.0,0.01648429]
[1641243607991,0.6762503,3697.5,3697.0,0.01648429]
[1641243608183,1.04910465,3697.1,3697.0,0.01648429]
[1641243608384,1.04910465,3697.1,3696.9,0.105358]
[1641243608784,1.04910465,3697.1,3697.0,0.01648429]
[1641243609250,1.04910465,3697.1,3697.0,0.36984469]
[1641243609457,4.39910465,3697.1,3697.0,0.30200509]
[1641243609655,4.39910465,3697.1,3696.9,5.8e-05]
[1641243609656,4.95,3697.0,3696.9,5.8e-05]
[1641243609853,1.322,3697.0,3696.9,5.8e-05]
[1641243610053,0.322,3697.0,3696.9,5.8e-05]
[1641243610255,8.1,3696.9,3695.0,0.0608]
[1641243610468,1.353189,3696.2,3694.9,3.1285]
[1641243610667,1.353189,3696.2,3695.5,0.00852635]
[1641243610668,0.322,3696.1,3695.5,0.00852635]
[1641243611254,1.19728662,3695.8,3695.5,0.00852635]
[1641243611455,2.17390752,3695.8,3695.5,0.00852635]
[1641243611656,3.85053752,3695.8,3695.5,0.00852635]
[1641243612061,4.52716752,3695.8,3695.5,0.00852635]
[1641243612258,4.52716752,3695.8,3695.5,0.11388435]
[1641243612462,3.85053752,3695.8,3695.5,0.11388435]
[1641243612662,2.55053752,3695.8,3695.6,0.00795792]
[1641243612861,2.85053752,3695.8,3695.6,0.00795792]
[1641243613283,1.35326,3696.0,3695.6,0.00795792]
[1641243613284,0.6765139,3696.1,3695.6,0.00795792]
[1641243613484,1.19868041,3696.9,3695.6,0.00795792]
[1641243613683,2.4898,3697.4,3695.6,0.00795792]
[1641243613684,1.3527222,3697.3,3695.6,0.00795792]
[1641243613880,1.1678,3697.4,3695.6,0.00795792]
[1641243613881,1.1678,3697.4,3695.7,0.06591743]
[1641243614080,4.423,3697.7,3695.7,3.01787491]
[1641243614081,0.00170528,3697.3,3695.7,3.01787491]
[1641243614281,0.00170528,3697.3,3696.4,0.67611]
[1641243614486,0.00113685,3697.2,3696.4,1.66671]
[1641243614689,0.00113685,3697.2,3696.5,2.88199826]
[1641243614887,0.00909478,3698.6,3696.5,0.39075954]
[1641243615087,0.00909478,3698.6,3696.6,2.59464793]
[1641243615288,0.6761003,3698.4,3696.6,0.62427369]
[1641243615487,1.3521803,3698.4,3696.7,0.00170527]
[1641243615689,1.33842207,3697.7,3696.8,1.15737234]
[1641243615893,1.33842207,3697.7,3696.7,0.00170527]
[1641243616089,0.00341055,3697.6,3696.7,0.00170527]
[1641243616490,0.00284212,3697.5,3696.4,0.00341054]
[1641243616757,0.00284212,3697.5,3696.1,6.42511581]
[1641243616758,1.39674465,3696.8,3696.1,6.42511581]
[1641243616946,0.0022737,3697.4,3696.2,0.00454738]
[1641243617343,0.00454739,3697.8,3696.2,0.68072738]
[1641243617546,0.00454739,3697.8,3696.2,0.98072738]
[1641243617745,3.7901,3698.2,3696.3,0.00397896]
[1641243617746,0.00397897,3697.7,3696.3,0.00397896]
[1641243618143,1.07811551,3697.6,3696.7,1.28851966]
[1641243618344,1.07811551,3697.6,3696.7,1.58851966]
[1641243618549,0.00284212,3697.5,3696.8,0.00113684]
[1641243618946,0.0022737,3697.4,3696.3,0.00397896]
[1641243619146,0.0022737,3697.4,3696.2,0.00454738]
[1641243619347,0.6763,3697.4,3696.2,0.00454738]
[1641243619947,1.21726278,3696.6,3696.2,0.00454738]
[1641243620590,1.21726278,3696.6,3695.6,0.00795792]
[1641243621204,1.32170022,3695.7,3695.6,0.00795792]
[1641243622598,0.6764435,3696.4,3695.6,0.00795792]
[1641243622801,0.3,3696.6,3695.4,0.00909477]
[1641243623199,0.03505819,3697.1,3695.4,0.00909477]
[1641243623601,0.67641,3696.9,3695.4,0.00909477]
[1641243624228,1.11587732,3696.2,3695.4,1.2977674]
[1641243624432,0.6763952,3696.8,3695.4,1.2977674]
[1641243624630,0.25,3696.7,3695.4,1.2977674]
[1641243624931,0.6763952,3696.8,3695.4,1.2977674]
[1641243625732,1.24500384,3696.3,3695.4,1.2977674]
[1641243626337,1.24500384,3696.3,3695.4,0.00909477]
[1641243626531,1.24500384,3696.3,3695.4,0.05010837]
[1641243627538,1.24500384,3696.3,3695.4,1.19048769]
[1641243628591,1.28025331,3696.3,3695.4,1.19048769]
[1641243628790,1.28025331,3696.3,3695.5,0.1316]
[1641243629192,1.28025331,3696.3,3695.6,0.00795792]
[1641243629394,1.21748667,3696.3,3695.6,0.00795792]
[1641243629794,1.6763817,3696.8,3695.6,0.00795792]
[1641243629996,0.3,3696.7,3695.6,0.00795792]
[1641243630395,0.85363442,3696.7,3695.6,0.00795792]
[1641243630796,1.15363442,3696.7,3695.6,0.00795792]
[1641243631296,1.07444928,3696.3,3695.6,0.00795792]
[1641243631932,1.3,3696.7,3695.7,0.1316]
[1641243632132,2.18039704,3697.1,3695.7,0.1316]
[1641243632133,0.5,3697.0,3695.7,0.1316]
[1641243632333,0.15122304,3697.1,3695.8,0.00682108]
[1641243632733,0.85365595,3696.6,3695.8,0.00682108]
[1641243633134,0.85365595,3696.6,3696.0,1.2910341]
[1641243633334,0.85365595,3696.6,3696.0,1.5910341]
[1641243633533,1.24371207,3696.9,3696.1,0.00511581]
[1641243633934,0.85365595,3697.0,3696.1,0.00511581]
[1641243634138,0.15122304,3697.1,3696.1,0.00511581]
[1641243634736,0.03140518,3696.9,3696.1,0.00511581]
[1641243635134,0.03140518,3696.9,3696.2,0.1316]
[1641243635591,0.03140518,3696.9,3696.3,0.00397896]
[1641243636594,0.13262822,3697.1,3696.3,0.00397896]
[1641243638197,0.13262822,3697.1,3696.4,0.1316]
[1641243638602,0.13262822,3697.1,3696.5,0.00284211]
[1641243639288,1.13019009,3696.7,3696.5,0.00284211]
[1641243640371,1.83797062,3696.7,3696.5,0.00284211]
[1641243641475,1.83797062,3696.7,3696.6,0.1316]
[1641243641871,2.13797062,3696.7,3696.6,0.13387369]
[1641243642473,2.99157176,3696.7,3696.6,0.13387369]
[1641243642872,2.69157176,3696.7,3696.6,0.13387369]
[1641243643084,2.01519496,3696.7,3696.6,0.13387369]
[1641243643284,2.01519496,3696.7,3696.6,0.23923169]
[1641243644086,1.16159382,3696.7,3696.6,0.23923169]
[1641243644698,1.16159382,3696.7,3696.6,0.24054617]
[1641243645286,2.01518009,3696.7,3696.6,0.24054617]
[1641243645788,1.16159382,3696.7,3696.6,0.24054617]
[1641243645989,0.03140373,3696.7,3696.6,0.24054617]
[1641243649337,1.17347122,3696.7,3696.6,0.24054617]
[1641243650785,2.02805472,3696.7,3696.6,0.24054617]
[1641243652690,1.17347122,3696.7,3696.6,0.24054617]
[1641243652890,1.47347122,3696.7,3696.6,0.24054617]
[1641243653293,1.47347122,3696.7,3696.6,0.13518817]
[1641243653692,2.32816298,3696.7,3696.6,0.13518817]
[1641243654739,2.02816298,3696.7,3696.6,0.13518817]
[1641243655236,2.02816298,3696.7,3696.6,0.24054717]
[1641243655636,1.17347122,3696.7,3696.6,0.24054717]
[1641243656038,1.12347122,3696.7,3696.6,0.24054717]
[1641243656237,0.13262822,3697.1,3696.6,0.24186165]
[1641243656648,0.13262822,3697.1,3696.7,0.00170527]
[1641243657044,0.13262822,3697.1,3696.8,0.1316]
[1641243657248,1.12054449,3696.9,3696.8,0.1316]
[1641243657648,1.12054449,3696.9,3696.8,0.13273684]
[1641243658191,0.85884581,3697.0,3696.8,0.13273684]
[1641243658892,0.85884581,3696.9,3696.8,0.13273684]
[1641243660896,0.85884581,3697.0,3696.8,0.13273684]
[1641243662543,1.15884581,3697.0,3696.8,0.13273684]
[1641243662743,2.51161581,3697.0,3696.8,0.13273684]
[1641243663142,6.15,3696.9,3696.8,0.13273684]
[1641243663342,6.8263879,3696.9,3696.8,0.13273684]
[1641243663544,1.6763879,3696.9,3696.8,0.13273684]
[1641243663743,2.3527379,3696.9,3696.8,0.13273684]
[1641243664545,2.88800371,3696.9,3696.6,0.10798796]
[1641243664845,5.24081711,3696.9,3696.6,0.10798796]
[1641243665045,1.10061645,3696.8,3696.6,0.10798796]
[1641243665487,2.10061645,3696.8,3696.6,0.00262896]
[1641243665886,2.95946226,3696.8,3696.6,0.00262896]
[1641243666489,0.85884581,3696.7,3696.6,0.00132896]
[1641243666892,0.85884581,3696.7,3696.6,0.00357697]
[1641243667091,1.89664581,3696.7,3696.6,0.00470261]
[1641243667493,2.89664581,3696.7,3696.6,0.00357697]
[1641243667693,3.57321581,3696.7,3696.6,0.00357697]
[1641243667893,3.87321581,3696.7,3696.6,0.00357697]
[1641243668097,3.87321581,3696.7,3696.3,0.06966678]
[1641243668293,0.67658,3696.5,3696.3,0.06966678]
[1641243668493,0.97658,3696.5,3696.4,0.00113685]
[1641243668693,1.97658,3696.5,3696.4,0.00113685]
[1641243668892,2.65316,3696.5,3696.4,0.00113685]
[1641243669539,3.02974,3696.5,3696.4,0.00113685]
[1641243669739,1.09700969,3695.6,3695.5,0.00625266]
[1641243670941,1.9558555,3695.6,3695.5,0.00625266]
[1641243672341,0.85884581,3695.6,3695.5,0.00625266]
[1641243673509,1.1305,3696.2,3695.5,0.00625266]
[1641243673707,1.1305,3696.2,3695.5,0.68267266]
[1641243673906,1.42065802,3696.3,3695.5,0.68267266]
[1641243674107,1.42065802,3696.3,3695.6,0.00568423]
[1641243674306,2.09708802,3696.3,3695.6,0.00568423]
[1641243674706,2.77349742,3696.3,3695.6,0.00568423]
[1641243674906,0.88045029,3696.1,3695.6,1.82822856]
[1641243675310,0.88045029,3696.1,3695.7,0.00511581]
[1641243675608,0.88045029,3696.2,3695.7,0.00511581]
[1641243676609,0.88045029,3696.0,3695.7,0.00511581]
[1641243677045,0.83045029,3696.0,3695.7,0.00511581]
[1641243677446,0.03140943,3696.3,3695.7,0.00511581]
[1641243677646,0.03140943,3696.3,3695.8,0.67636]
[1641243677846,0.03140943,3696.3,3696.0,0.67627]
[1641243678247,0.03140943,3696.3,3696.1,0.00284212]
[1641243678846,0.03140943,3696.3,3696.1,1.82421679]
[1641243679045,0.03140943,3696.3,3696.1,1.82137467]
[1641243679250,0.03140943,3696.3,3696.2,0.00227369]
[1641243679949,0.03140943,3696.3,3695.9,1.82137467]
[1641243679950,0.03140943,3696.3,3696.1,0.105359]
[1641243680350,0.03140943,3696.3,3696.2,0.00227369]
[1641243684233,0.33140943,3696.3,3696.2,0.00227369]
[1641243684833,0.03140943,3696.3,3696.2,0.00227369]
[1641243685735,0.33140943,3696.3,3696.2,0.00227369]
[1641243686737,0.03140943,3696.3,3696.2,0.00227369]
[1641243689294,0.03140943,3696.3,3696.2,0.00423247]
[1641243693163,0.33140943,3696.3,3696.2,0.00423247]
[1641243694167,0.67662,3696.2,3696.0,0.105358]
[1641243694362,6.6330832,3696.2,3696.0,0.105358]
[1641243694563,7.6330832,3696.2,3696.0,0.105358]
[1641243694964,7.6330832,3696.2,3695.5,0.06929596]
[1641243694965,0.1053,3696.0,3695.5,0.06929596]
[1641243695166,0.67676,3695.8,3695.5,0.06929596]
[1641243695367,0.322,3695.7,3695.1,1.82137467]
[1641243695797,1.39556678,3695.4,3695.2,0.0022737]
[1641243695998,1.69556678,3695.4,3695.2,0.0022737]
[1641243696198,2.69556678,3695.4,3695.2,0.0022737]
[1641243696600,0.67677,3695.1,3694.7,0.00511581]
[1641243696808,0.6767623,3695.0,3694.7,0.00511581]
[1641243697005,1.3535323,3695.0,3694.7,0.00511581]
[1641243697404,2.3535323,3695.0,3694.7,0.00511581]
[1641243697803,0.67677,3694.9,3694.7,0.00511581]
[1641243698404,0.67677,3694.9,3694.4,0.00682109]
[1641243698606,0.67672,3694.7,3694.4,0.00682109]
[1641243699105,0.67672,3694.7,3694.5,1.82137467]
[1641243699541,0.67672,3694.7,3694.6,0.00568424]
[1641243700143,1.9401548,3694.7,3694.6,0.00568424]
[1641243701347,0.70807044,3694.9,3694.6,0.00762065]
[1641243701748,0.70807044,3694.9,3694.7,0.00511581]
[1641243701955,0.03142044,3694.9,3694.7,0.00511581]
[1641243702351,0.03142044,3694.9,3694.8,1.20649198]
[1641243702549,0.03142044,3694.9,3694.8,1.82137467]
[1641243702750,0.03142044,3694.9,3694.8,1.82592206]
[1641243703205,0.03142044,3694.9,3694.8,0.00454739]
[1641243703603,0.03142044,3694.9,3694.8,1.03836296]
[1641243704007,0.03142044,3694.9,3694.8,1.04291035]
[1641243707154,0.03142044,3694.9,3694.8,1.14826935]
[1641243707748,0.03864893,3695.5,3694.8,1.14826935]
[1641243707949,0.03864893,3695.5,3695.1,0.67645]
[1641243708749,0.04109265,3695.5,3695.1,0.67645]
[1641243709150,0.04109265,3695.5,3695.0,0.67645]
[1641243709451,0.05773885,3695.5,3695.1,0.00284212]
[1641243709654,0.05773885,3695.5,3695.3,1.83347867]
[1641243709851,0.06018257,3695.5,3695.3,1.83347867]
[1641243710049,0.06018257,3695.5,3695.4,0.00113685]
[1641243710491,0.11059026,3695.5,3695.4,0.00113685]